Cogmind - Beta 15 @@@ ROGUE MODE // 2025.09.17 @ 19:41:41 Player: cottonman132 Result: Destroyed by Y-45 Defender with Beam Rifle Performance ------------- Evolutions (1) 500 Regions Visited (2) 400 Robots Destroyed (26) 130 Value Destroyed (785) 785 Prototype IDs (0) 0 Alien Tech Used (0) 0 Bonus (0) 0 TOTAL SCORE: 1815 Bonus ------- None Cogmind --------- Core Integrity 0/400 Matter 290/300 Energy 260/265 System Corruption 0% Temperature Cool (9) Movement Treading (160) Location -9/Materials Parts ------- > --- POWER (1) -------- Improved Ion Engine > --- PROPULSION (3) --- Light Treads Improved Treads Improved Treads > --- UTILITY (3) ------ Large Storage Unit Hardened Light Armor Plating > --- WEAPON (2) ------- Hammer > --- INVENTORY (15) --- Heavy Ion Engine Light Treads Aluminum Leg Peak State ------------ > --- POWER ------------ Improved Ion Engine > --- PROPULSION ------- Improved Treads Improved Treads Improved Treads > --- UTILITY ---------- Large Storage Unit Propulsion Shielding Hardened Light Armor Plating > --- WEAPON ----------- Hammer > --- INVENTORY -------- Heavy Ion Engine Light Treads Aluminum Leg [Rating: 13] Favorites ----------- Power Improved Ion Engine Engine Improved Ion Engine Power Core Light Nuclear Core Propulsion Improved Treads Treads Improved Treads Leg Aluminum Leg Wheel Wheel Hover Unit Improved Hover Unit Utility Large Storage Unit Storage Large Storage Unit Protection Propulsion Shielding Weapon Hammer Ballistic Gun Light Assault Rifle Impact Weapon Hammer Build | -11 -10 -9 ------- Run | Yrd Mat Mat Slots Evolved 2 | . . 2 Power . | . . . Propulsion 1 | . . 1 Utility 1 | . . 1 Weapon . | . . . Parts Attached 29 | 4 7 18 Power 5 | 1 1 3 Engine 4 | 1 1 2 Core 1 | . . 1 Reactor . | . . . Propulsion 13 | 2 2 9 Treads 4 | . . 4 Leg 3 | . 2 1 Wheel 2 | 2 . . Hover 4 | . . 4 Flight . | . . . Utility 7 | 1 1 5 Device . | . . . Storage 2 | 1 1 . Processor . | . . . Hackware . | . . . Protection 5 | . . 5 Artifact . | . . . Weapon 4 | . 3 1 Energy Gun . | . . . Energy Cannon . | . . . Ballistic Gun 3 | . 2 1 Ballistic Cannon . | . . . Launcher . | . . . Special Weapon . | . . . Impact Weapon 1 | . 1 . Slashing Weapon . | . . . Piercing Weapon . | . . . Special Melee Weapon . | . . . Unidentified Prototypes . | . . . Parts Lost 14 | . 4 10 Power 3 | . 1 2 Propulsion 7 | . 3 4 Utility 4 | . . 4 Weapon . | . . . Highest Loss Streak 4 | . 2 4 To Critical Strikes . | . . . Average Backups 2 | 2 3 2 Power 1 | . 2 . Propulsion . | 1 . 1 Utility . | . . . Weapon . | . . . Tool/Special . | . . . Unused Backups 2 | . . 2 Power 1 | . . 1 Propulsion 1 | . . 1 Utility . | . . . Weapon . | . . . Tool/Special . | . . . Average Slot Usage (%) 72 | . 67 75 Engine 10 | . 13 8 Treads 15 | . . 25 Leg 8 | . 20 1 Wheel 1 | . 5 . Hover 1 | . . 3 Storage 12 | . 14 11 Protection 9 | . . 14 Impact Weapon 10 | . 10 11 Peak Build Rating 13 | 4 5 13 Average Rating 8 | 2 4 10 On Entrance 2 | . 4 2 Naked Turns . | . . . Heaviest Build 35 | 8 27 35 Greatest Support 69 | 20 20 69 Greatest Overweight (x) 8 | 2 7 8 Average Overweight (x) . | . . . Largest Inventory Capacity 15 | 8 15 15 Average Capacity 14 | 7 13 15 Most Carried 7 | 5 7 5 Average Carried 2 | 2 3 2 Final Capacity 15 | 8 15 15 Final Carried 4 | 4 3 3 Class Distribution -------------------- 100% | Mutant Dominant Class ---------------- Mutant | -10/Materials Mutant | -9/Materials Resources | -11 -10 -9 ----------- Run | Yrd Mat Mat Matter Collected 472 | 240 92 140 Remotely . | . . . Salvage Created 912 | . 164 748 Parts 31 | . 11 20 Haulers Intercepted 1 | . . 1 Recyclers Shooed . | . . . Parts Field Recycled . | . . . Retrieved Matter . | . . . Parts Self-Destructed . | . . . Prevented . | . . . Kills | -11 -10 -9 ------- Run | Yrd Mat Mat Combat Hostiles Destroyed 22 | . 6 16 Melee 9 | . 2 7 Guns 3 | . 3 . Classes Destroyed 7 | . 3 4 Hauler 1 | . . 1 Operator 1 | . . 1 Watcher 2 | . 1 1 Swarmer 4 | . 4 . Grunt 13 | . 2 11 Duelist 1 | . . 1 Sentry 4 | . . 4 Best Kill Streak 5 | . 3 5 Combat Bots Only 4 | . 3 4 Max Kills in Single Turn 1 | . 1 1 Gunslinging . | . . . Exploded . | . . . Melee 1 | . 1 1 Uniques/NPCs Destroyed . | . . . Combat | -11 -10 -9 -------- Run | Yrd Mat Mat Hostile Shots Fired 230 | . 84 146 Missed 59 | . 22 37 Hits 171 | . 62 109 Melee 3 | . . 3 Projectile 168 | . 62 106 AOE 1 | . 1 . Critical Strikes 3 | . 1 2 Damage Taken 2184 | . 718 1466 Core 628 | . 222 406 Absorbed by Shields . | . . . Redirected to Shielding 104 | . . 104 Core Remaining (%) 55 | 100 11 . Volleys Fired 23 | . 23 . Largest 2 | . 2 . Hottest 40 | . 40 . Shots Fired 27 | . 27 . Gun 27 | . 27 . Cannon . | . . . Launcher . | . . . Special . | . . . Kinetic 27 | . 27 . Thermal . | . . . Explosive . | . . . Electromagnetic . | . . . Robot Hit Streak 5 | . 5 . Robot Miss Streak 6 | . 6 . Penetration Max . | . . . Secondary Targets . | . . . Shots Hit Robots 84 | . 22 62 Core Hits 19 | . 9 10 Critical Kills 3 | . 1 2 Critical Parts Destroyed 12 | . 1 11 Critical Strikes 16 | . 2 14 Smash 16 | . 2 14 Melee Attacks 115 | . 31 84 Impact 115 | . 31 84 Slashing . | . . . Piercing . | . . . Sneak Attacks 3 | . 1 2 Combat Hostiles 1 | . 1 . Follow-up Attacks . | . . . Damage Inflicted 1958 | . 411 1547 Guns 71 | . 71 . Cannons . | . . . Explosions . | . . . Melee 1887 | . 340 1547 Ramming . | . . . Kinetic 71 | . 71 . Thermal . | . . . Explosive . | . . . Electromagnetic . | . . . Impact 1887 | . 340 1547 Slashing . | . . . Piercing . | . . . Highest Corruption . | . . . Average Corruption . | . . . Corruption Purged . | . . . Corruption Blocked . | . . . Overload Shots . | . . . Overflow Damage 343 | . 24 319 Projectiles . | . . . Explosions . | . . . Melee 343 | . 24 319 Knockbacks 13 | . 4 9 Impact 13 | . 4 9 Kinetic . | . . . Secondary . | . . . Self-Inflicted Damage . | . . . Shots . | . . . Rammed . | . . . Targets Rammed . | . . . Kicked . | . . . Crushed . | . . . Highest Temperature 15 | . . 15 Average Temperature 6 | . . 6 Received Heat Transfer 813 | . 186 627 Siege Activations . | . . . Martial Activations . | . . . Shielding Activations . | . . . Robots Disrupted . | . . . Combat Hostiles . | . . . Robots Corrupted 12 | . 2 10 Combat Hostiles 10 | . 1 9 Parts Fried 18 | . 3 15 Impact Corruptions 24 | . 3 21 Robots Melted . | . . . Combat Hostiles . | . . . Parts Melted . | . . . Heat Transferred . | . . . Parts Sabotaged . | . . . Parts Stolen . | . . . Parts Stripped . | . . . Power Chain Reactions . | . . . Alert | -11 -10 -9 ------- Run | Yrd Mat Mat Maximum Alert Level . | . . . Low Security (%) 100 | 100 100 100 Level 1 . | . . . Level 2 . | . . . Level 3 . | . . . Level 4 . | . . . Level 5 . | . . . High Security . | . . . Max Security . | . . . Peak Influence 143 | . 45 143 Initial . | . . . Average 35 | . 14 51 Influence Increases 694 | . 213 481 Destroy 0b10 Robot/C 440 | . 120 320 Destroy 0b10 Robot/NC 20 | . 5 15 Destroy Leader 126 | . 32 94 Successful Hack 27 | . 22 5 Destroy Structure 6 | . 4 2 Lose Combat Pursuer 75 | . 30 45 Influence Decreases 694 | . 213 481 Time Decay 490 | . 177 313 Lost Part 117 | . 36 81 Purge Threat 87 | . . 87 Squads Dispatched 5 | . 2 3 Investigation 1 | . 1 . Extermination . | . . . Reinforcement 4 | . 1 3 Assault . | . . . Garrison . | . . . Intercept . | . . . Searches Triggered . | . . . Construction Impeded . | . . . Haulers Reinforced . | . . . Active Scanning Responses . | . . . Cargo Convoy Interrupts . | . . . Stealth | -11 -10 -9 --------- Run | Yrd Mat Mat Distress Signals 2 | . 1 1 Communications Jammed . | . . . Distress Signals . | . . . Times Spotted 49 | . 18 31 Peak Tracking Total 5 | . 4 5 Tactical Retreats 4 | . 2 2 Traps | -11 -10 -9 ------- Run | Yrd Mat Mat Traps Triggered . | . . . Indirectly . | . . . Trap Hack Attempts . | . . . Triggered . | . . . Disarmed 4 | . 4 . Reprogrammed . | . . . Reused . | . . . Traps Extracted . | . . . Installed . | . . . Triggered . | . . . Machines | -11 -10 -9 ---------- Run | Yrd Mat Mat Machines Disabled . | . . . Max in Single Turn . | . . . Machines Repaired . | . . . Machines Dismantled . | . . . Machines Sabotaged . | . . . Overloaded Fab Kills . | . . . Hacking | -11 -10 -9 --------- Run | Yrd Mat Mat Machines Accessed 8 | . 6 2 Terminals 8 | . 6 2 Fabricators . | . . . Repair Stations . | . . . Recycling Units . | . . . Scanalyzers . | . . . Garrison Access . | . . . Total Hacks 18 | . 12 6 Successful 15 | . 10 5 Failed 3 | . 2 1 Catastrophic 1 | . 1 . Database Lockouts . | . . . Manual 1 | . . 1 Terminals 18 | . 12 6 Fabricators . | . . . Repair Stations . | . . . Recycling Units . | . . . Scanalyzers . | . . . Garrison Access . | . . . Terminal Hacks 15 | . 10 5 Robot Analysis 1 | . 1 . Branch Access Points 1 | . 1 . Terminal Index 1 | . 1 . Alert Level 2 | . 1 1 Unreport Threat 1 | . . 1 Locate Traps 4 | . 3 1 Disarm Traps 1 | . 1 . Hauler Manifests 1 | . . 1 Zone Layout 3 | . 2 1 Fabricator Hacks . | . . . Repair Station Hacks . | . . . Recycling Unit Hacks . | . . . Scanalyzer . | . . . Garrison Access Hacks . | . . . Unauthorized Hacks . | . . . Terminals . | . . . Fabricators . | . . . Repair Stations . | . . . Recycling Units . | . . . Scanalyzers . | . . . Garrison Access . | . . . Data Cores Recovered . | . . . Used . | . . . Hacking Detections 3 | . 2 1 Full Trace Events 1 | . 1 . Feedback Events . | . . . Feedback Blocked . | . . . Robot Schematics Acquired . | . . . Robots Built . | . . . Authchips . | . . . Time . | . . . Total Robot Build Rating . | . . . Part Schematics Acquired . | . . . Parts Built . | . . . Authchips . | . . . Time . | . . . Total Part Build Rating . | . . . Parts Repaired . | . . . Time . | . . . Parts Recycled . | . . . Recycled Matter . | . . . Retrieved Matter . | . . . Retrieved Components . | . . . Parts Scanalyzed . | . . . Part Schematics Acquired . | . . . Parts Damaged . | . . . Bothacking | -11 -10 -9 ------------ Run | Yrd Mat Mat Used RIF Installer . | . . . Robots Hacked . | . . . Non-combat . | . . . Combat . | . . . Robot Hacks Applied . | . . . Relay Couplers Released . | . . . Fabnet Peak Effective % . | . . . Robots Rewired . | . . . Allies Hacked . | . . . Hacks Repelled . | . . . Allies | -11 -10 -9 -------- Run | Yrd Mat Mat Total Allies . | . . . Largest Group . | . . . Highest-Rated Group . | . . . Highest-Rated Ally . | . . . Total Orders . | . . . Ally Attacks . | . . . Total Damage . | . . . Kills . | . . . Allies Corrupted . | . . . Allies Melted . | . . . Intel | -11 -10 -9 ------- Run | Yrd Mat Mat Active Infowar (turns) . | . . . Robot Analysis Total 1 | . 1 . Derelict Logs Recovered . | . . . Drone Launches . | . . . Drone Recoveries . | . . . Exploration | -11 -10 -9 ------------- Run | Yrd Mat Mat Turns Passed 1483 | 66 525 892 Spaces Moved 628 | 57 224 347 Core 31 | 24 2 5 Treads 297 | . . 297 Legs 156 | . 156 . Wheels 99 | 33 66 . Hover 45 | . . 45 Flight . | . . . Fastest Speed 50 | 50 80 112 Average Speed 158 | 95 164 165 Slowest Speed 450 | 150 400 450 Overloaded Moves . | . . . Propulsion Burnouts . | . . . Robots Hopped . | . . . Potential Cave-ins . | . . . Cave-ins Triggered . | . . . Exploration Rate (%) 31 | 3 51 39 Regions Visited 2 Branch Regions . Pre-discovered Areas . | . . . Known Exits Taken . | . . . Unknown Exits Taken 2 | 1 1 . Scrap Searched . | . . . Spaces Dug 6 | . 4 2 Terrain Destroyed 6 | . 4 2 Melee 6 | . 4 2 Projectile . | . . . AOE . | . . . Terrain Rammed . | . . . Walls Destroyed . | . . . Machines Disabled . | . . . Actions | -11 -10 -9 --------- Run | Yrd Mat Mat Total 898 | 68 309 521 Wait 66 | . 14 52 Move 626 | 56 223 347 Hop . | . . . Pick Up 31 | 8 6 17 Fast Attach . | . . . Attach 26 | 4 6 16 Detach 1 | . . 1 Swap 3 | . 1 2 Drop 7 | . 5 2 Fire 23 | . 23 . Melee 115 | . 31 84 Ram . | . . . Kick . | . . . Crush . | . . . Escape Stasis . | . . . Rewire . | . . . Trap . | . . . Miscellaneous . | . . . Route ------- -11/Scrapyard -10/Materials (discovered 2 exits: *Mat / Min) -9/Materials (discovered 1 exit: [*Min]) History --------- Turn | Location | Event 2 | -11/Scrapyard | Met Revision 17 15 | -11/Scrapyard | Discovered new exit (range 16) 67 | -11/Scrapyard | Entered Materials 312 | -10/Materials | Build established: Mutant 345 | -10/Materials | Identified exit to Mines 542 | -10/Materials | Core integrity fell below 50% 549 | -10/Materials | Discovered new exit (range 16) 592 | -10/Materials | Core integrity fell below 20% 592 | -10/Materials | Entered another Materials area 592 | -9/Materials | Evolved 2 slots: Propulsion x1, Utility x1 727 | -9/Materials | Lost 4 parts (1p3n) 866 | -9/Materials | Core integrity fell below 50% 1023 | -9/Materials | Discovered new exit (range 16) 1156 | -9/Materials | Core integrity fell below 20% 1484 | -9/Materials | Destroyed by Y-45 Defender with Beam Rifle Last Messages --------------- 2x Imp. Flight Unit 4x Cld. Ion Engine (2 escorts) A-02 Transporter 3x Hvy. Ion Engine 3x Cld. Ion Engine (1 escort) A-02 Transporter 4x Adv. Beam Cannon (2 escorts) A-02 Transporter 2x Mining Laser 4x Imp. Ion Engine A-02 Transporter 1x Particle Cannon 3x Com. Wheel >>Alert(Check) Current Alert Level: Low Security >>Alert(Purge) Purged threat record, alert level lowered. Map ----- +----------------------------------------------------+ | ???????????????????????????????????? | | ???????????????????????????????????? | | ???????????????????????????????????? | | ???????????????????????????????????? | | ???????????????????????????????????? | | ???????????????????????????????????? | | #######????????????????????????????? | | #????????????????????????????? | | % #????????????????????????????? | | #????????????????????????????? | | """" #????????????????????????????? | | """" #????????????????????????????? | | """" ##########???????????????????? | | # #?????????? ????????? | | # """ #?????????? ????????? | | ###+### """ ## # # # | | # """ ## + # # | | + ! ## ### # # | | #=%!""" #########?# # # | | #*! """ #?????????# ######### | | # """ #?????????# #???????? | | # #?????????# #???????? | | ##### #######+############ ##??????? | | ????# #?????# #?# # #??????? | | ????# #?????# #?#"" |]= Y " #??????? | | ????# #?????# #?#"Y ]] #@ #??????? | | ????# #?????# #?#"" ]= ## ##??????? | | ????? #?????# #?# ## #???????? | | ????? #?????# #?###### ### ##??????? | | ????# ####### ########### #??????? | | ##??# T #??????? | | #??# ####### ###????? | | #??? ??????# ####T###??? | | #???+?????## #??? | | #????????? #### ^ #??? | | #????????? #??# """" ^ """#??? | | #????????? #??# ^ """" ^ R"#??? | | #????????? #??#^ """" """#??? | | #????????? #### #??? | | ##? ??????? + #??? | | ??# ??????? #### #??? | | ??# ??????? #??# #??? | | #/##+#######?# #??? | | ? # #?# #####"T"###### #??? | | ??+ #?# #???#"""#????# #??? | | ??# #?# #???#####????# #??? | | ??# #?# ?????????????# #??? | | ??# #?? ?????????????# #??? | | ??# #??????????????### ###? | | ??# ^ #?#+####???????# #? | +----------------------------------------------------+ Best States ------------- Heat Dissipation 28 Energy Generation 14 Energy Capacity 265 Matter Stores 300 Matter Capacity 300 Sight Range 16 Terrain Scan Density 10 Armor Coverage 150 Propulsion Shielding 33 Evasion (%) 50 Recoil Reduction 3 Item Schematics ----------------- None Robot Schematics ------------------ None Fabricated ------------ Nothing Repaired ---------- Nothing Alien Tech Used ----------------- None Achievements -------------- None Challenges ------------ None Game ------ Seed MagneticConceptTerminator Manual? 0 Play Time 00:13:51 Cumulative 12.6 hours Start 2025.09.17 @ 19:27:52 End 2025.09.17 @ 19:41:41 Sessions 1 Manual Loads 0 Difficulty Rogue Special Mode None Game No. 39 Rogue 39 Adventurer 0 Explorer 0 Win Type - Total 0 Types 0/0/0/0/0/0/0/0/0/0 Lore% 20 Gallery% 12 Achievement% 16 Wizard Run 0 Options --------- Layout 2 ASCII 0 Keyboard 0 Movement Mouse Keybinds 0 Fullscreen 1 Font 24/Smallcaps Map View 50x44 Zoom Use 0% Tactical HUD 1 Map Filters NONE Filters NONE Steam 1 RUN: 4a4c1c3b-6125-4414-bfe0-1e1f67f7754b